fUSD/lending_fUSD_20240528
["ID","MTS","AMOUNT","RATE_DAILY","PERIOD"]
[328107876,1716867042893,-500.0,0.00030136,6]
[328107877,1716867042903,-500.0,0.00030136,6]
[328107878,1716867042912,-500.0,0.00030136,6]
[328107879,1716867042922,-500.0,0.00030136,6]
[328107880,1716867042931,-500.0,0.00030136,6]
[328107881,1716867042941,-500.0,0.00030136,6]
[328107882,1716867042950,-500.0,0.00030136,6]
[328107883,1716867042960,-500.0,0.00030136,2]
[328107884,1716867042969,-500.0,0.00030136,6]
[328107885,1716867042979,-500.0,0.00030136,2]
[328107886,1716867042989,-500.0,0.00030136,6]
[328107887,1716867042999,-500.0,0.00030136,2]
[328107888,1716867043009,-500.0,0.00030136,6]
[328107889,1716867043018,-500.0,0.00030136,6]
[328107890,1716867043028,-632.34,0.00030136,2]
[328107891,1716867043038,-500.0,0.00030136,6]
[328107892,1716867043047,-500.0,0.00030136,6]
[328107893,1716867043057,-500.0,0.00030136,6]
[328107894,1716867043067,-500.0,0.00030136,6]
[328107895,1716867043077,-500.0,0.00030136,6]
[328107896,1716867043090,-519.44436654,0.00030136,6]
[328107897,1716867043100,-500.0,0.00030136,6]
[328107898,1716867043110,-500.0,0.00030136,6]
[328107899,1716867043119,-500.0,0.00030136,6]
[328107900,1716867043129,-520.7360951,0.00030136,6]
[328107901,1716867043140,-150.0,0.00030137,2]
[328107902,1716867043150,-150.0,0.00030137,2]
[328107903,1716867043159,-150.0,0.00030137,2]
[328107904,1716867043170,-150.0,0.00030137,2]
[328107905,1716867043180,-150.0,0.00030137,2]
[328107906,1716867043190,-150.0,0.00030137,2]
[328107907,1716867043199,-150.0,0.00030137,2]
[328107908,1716867043209,-150.0,0.00030137,2]
[328107909,1716867043219,-208.6188,0.00030166,120]
[328107910,1716867043228,-1000.0,0.00030208,120]
[328107911,1716867043238,-500.0,0.00030209,6]
[328107912,1716867043248,-812.17,0.00030209,6]
[328107913,1716867043259,-500.0,0.00030209,6]
[328107914,1716867043270,-500.0,0.00030209,6]
[328107915,1716867043280,-14338.33734927,0.0003021,2]
[328107916,1716867043291,-1366.51530341,0.00030395,10]
[328107917,1716867043301,-7162.74068962,0.00030395,10]
[328107918,1716867043311,-207.0,0.0003043,2]
[328107919,1716867043321,-208.0,0.0003043,2]
[328107920,1716867043331,-151.0,0.00030465,2]
[328107921,1716867043341,-384.61911831,0.00030468,2]
[328107922,1716867043351,-620.07,0.00030506,2]
[328107923,1716867043361,-500.0,0.00030519,6]
[328107924,1716867043371,-14338.33734927,0.0003052,2]
[328107925,1716867043380,-151.06033306,0.00030555,4]
[328107926,1716867043391,-150.0,0.00030716,2]
[328107927,1716867043402,-200.0,0.00030766,120]
[328107928,1716867043412,-500.0,0.00030799,6]
[328107929,1716867043456,-150.0,0.00030799,6]
[328107930,1716867043467,-500.0,0.00030799,6]
[328107931,1716867043477,-449.15833231,0.00030799,6]
[328107932,1716867043488,-966.36,0.00030799,6]
[328107933,1716867043510,-73860.49183178,0.000308,2]
[328107934,1716867043531,-158.0370497,0.000308,7]
[328107935,1716867043556,-14338.33734927,0.0003083,2]
[328107936,1716867043575,-150.0,0.00030997,7]
[328107937,1716867043595,-2100.0,0.00030997,2]
[328107938,1716867043616,-152.10323351,0.00031033,7]
[328107939,1716867043637,-384.61911831,0.00031036,2]
[328107940,1716867043657,-500.0,0.00031067,2]
[328107941,1716867043679,-200.0,0.00031067,2]
[328107942,1716867043703,-1366.51530341,0.00031134,10]
[328107943,1716867043714,-7162.74068962,0.00031134,10]
[328107944,1716867043724,-500.0,0.00031136,10]
[328107945,1716867043733,-1100.0,0.00031136,10]
[328107946,1716867043743,-1500.0,0.00031136,10]
[328107947,1716867043753,-14338.33734927,0.0003114,2]
[328107948,1716867043762,-150.0,0.00031162,2]
[328107949,1716867043771,-150.0,0.00031166,2]
[328107950,1716867043781,-529.33,0.00031206,2]
[328107951,1716867043793,-200.0,0.00031208,120]
[328107952,1716867043803,-150.0,0.00031234,2]
[328107953,1716867043813,-155.01559007,0.0003124,7]
[328107954,1716867043822,-157.052811,0.00031248,36]
[328107955,1716867043832,-154.55559779,0.00031273,7]
[328107956,1716867043841,-207.0,0.0003139,2]
[328107957,1716867043851,-208.0,0.0003139,2]
[328107958,1716867043860,-157.052811,0.00031448,36]
[328107959,1716867043870,-14338.33734927,0.0003145,3]
[328107960,1716867043880,-178.16819794,0.0003147,7]
[328107961,1716867043889,-275.5,0.000315,2]
[328107962,1716867043899,-152.0,0.00031508,3]
[328107963,1716867043908,-384.61911831,0.00031605,2]
[328107964,1716867043918,-157.052811,0.00031648,36]
[328107965,1716867043927,-174.77006425,0.00031672,3]
[328107966,1716867043937,-1100.0,0.00031684,10]
[328107967,1716867043947,-1500.0,0.00031684,10]
[328107968,1716867043957,-153.64761098,0.00031693,7]
[328107969,1716867043968,-150.0,0.00031709,2]
[328107970,1716867043978,-150.0,0.00031742,2]
[328107971,1716867043987,-150.0,0.00031743,2]
[328107972,1716867043997,-185.18333251,0.00031747,7]
[328107973,1716867044006,-4183.74455933,0.00031757,2]
[328107974,1716867044016,-14338.33734927,0.00031759,3]
[328107975,1716867044026,-150.0,0.00031785,2]
[328107976,1716867044036,-3000.0,0.000318,2]
[328107977,1716867044048,-200.0,0.00031808,120]
[328107978,1716867044058,-1000.0,0.00031808,120]
[328107979,1716867044068,-152.10323351,0.00031813,7]
[328107980,1716867044078,-150.0,0.00031821,2]
[328107981,1716867044094,-150.0,0.00031835,2]
[328107982,1716867044106,-150.0,0.0003184,2]
[328107983,1716867044127,-167.052811,0.00031848,40]
[328107984,1716867044148,-150.0,0.00031851,2]
[328107985,1716867044169,-150.0,0.00031864,2]
[328107986,1716867044191,-150.0,0.00031873,2]
[328107987,1716867044215,-1366.51530341,0.00031873,10]
[328107988,1716867044238,-7162.74068962,0.00031873,10]
[328107989,1716867044261,-150.0,0.00031874,2]
[328107990,1716867044283,-150.0,0.00031877,2]
[328107991,1716867044308,-150.0,0.00031905,2]
[328107992,1716867044332,-150.0,0.00031907,2]
[328107993,1716867044346,-150.0,0.00031914,2]
[328107994,1716867044355,-150.0,0.00031925,2]
[328107995,1716867044365,-150.0,0.00031937,2]
[328107996,1716867044375,-150.0,0.00031957,2]
[328107997,1716867044385,-300.0,0.00031961,2]
[328107998,1716867044394,-1500.0,0.00031963,2]
[328107999,1716867044404,-150.0,0.00031977,2]
[328108000,1716867044414,-150.0,0.00031989,2]
[328108001,1716867044424,-334.02343811,0.00032,4]
[328108002,1716867044433,-231.18826715,0.00032,4]
[328108003,1716867044443,-150.0,0.00032,2]
[328108004,1716867044453,-150.0,0.00032,2]
[328108005,1716867044463,-150.0,0.00032009,2]
[328108006,1716867044473,-150.0,0.00032014,2]
[328108007,1716867044482,-500.0,0.0003202,6]
[328108008,1716867044491,-500.0,0.0003202,6]
[328108009,1716867044501,-812.17,0.0003202,6]
[328108010,1716867044511,-217.35,0.0003202,6]
[328108011,1716867044521,-500.0,0.0003202,6]
[328108012,1716867044530,-445.0,0.00032021,2]
[328108013,1716867044541,-2398.0,0.00032021,2]
[328108014,1716867044551,-808.0,0.00032021,2]
[328108015,1716867044560,-216.0,0.00032021,2]
[328108016,1716867044571,-1137.0,0.00032021,2]
[328108017,1716867044582,-1651.0,0.00032021,2]
[328108019,1716867044592,-3166.0,0.00032021,2]
[328108021,1716867044602,-5140.0,0.00032021,2]
[328108023,1716867044612,-5766.0,0.00032021,2]
[328108024,1716867044622,-357.0,0.00032021,2]
[328108025,1716867044631,-289.0,0.00032021,2]
[328108026,1716867044641,-975.0,0.00032021,2]
[328108027,1716867044651,-37944.0,0.00032021,2]
[328108028,1716867044660,-151.0,0.00032021,7]
[328108029,1716867044670,-151.0,0.00032021,7]
[328108030,1716867044680,-151.0,0.00032021,7]
[328108031,1716867044690,-173.098366,0.00032021,7]
[328108032,1716867044700,-152.365343,0.00032021,7]
[328108033,1716867044711,-152.975218,0.00032021,7]
[328108034,1716867044721,-281.724209,0.00032021,7]
[328108035,1716867044731,-151.0,0.00032021,7]
[328108036,1716867044741,-151.0,0.00032021,7]
[328108037,1716867044752,-281.088445,0.00032021,7]
[328108038,1716867044762,-281.088445,0.00032021,7]
[328108039,1716867044772,-151.0,0.00032021,7]
[328108040,1716867044781,-151.0,0.00032021,7]
[328108042,1716867044791,-151.0,0.00032021,7]
[328108043,1716867044801,-477.220039,0.00032021,7]
[328108044,1716867044810,-477.220039,0.00032021,7]
[328108045,1716867044820,-151.0,0.00032021,7]
[328108046,1716867044830,-151.0,0.00032021,7]
[328108047,1716867044839,-151.0,0.00032021,7]
[328108048,1716867044849,-151.0,0.00032021,7]
[328108049,1716867044859,-151.0,0.00032021,7]
[328108050,1716867044869,-151.0,0.00032021,7]
[328108051,1716867044879,-151.0,0.00032021,7]
[328108052,1716867044890,-151.850284,0.00032021,7]
[328108053,1716867044899,-151.0,0.00032021,7]
[328108054,1716867044909,-151.0,0.00032021,7]
[328108055,1716867044918,-151.0,0.00032021,7]
[328108056,1716867044928,-151.0,0.00032021,7]
[328108057,1716867044938,-151.0,0.00032021,7]
[328108058,1716867044948,-151.0,0.00032021,7]
[328108059,1716867044958,-151.0,0.00032021,7]
[328108060,1716867044968,-154.09777,0.00032021,7]
[328108061,1716867044977,-151.0,0.00032021,7]
[328108062,1716867044987,-151.0,0.00032021,7]
[328108063,1716867044997,-151.0,0.00032021,7]
[328108064,1716867045007,-151.0,0.00032021,7]
[328108065,1716867045017,-151.0,0.00032021,7]
[328108066,1716867045026,-151.0,0.00032021,7]
[328108067,1716867045036,-151.0,0.00032021,7]
[328108068,1716867045048,-151.0,0.00032021,7]
[328108069,1716867045057,-151.0,0.00032021,7]
[328108070,1716867045067,-151.0,0.00032021,7]
[328108071,1716867045077,-151.0,0.00032021,7]
[328108072,1716867045088,-151.0,0.00032021,7]
[328108073,1716867045100,-150.0,0.00032038,2]
[328108074,1716867045110,-157.052811,0.00032048,42]
[328108075,1716867045120,-150.0,0.00032054,2]
[328108076,1716867045131,-14338.33734927,0.00032069,3]
[328108077,1716867045140,-150.0,0.00032075,2]
[328108078,1716867045151,-150.0,0.00032083,2]
[328108079,1716867045160,-150.0,0.00032086,2]
[328108080,1716867045171,-150.0,0.00032094,2]
[328108081,1716867045182,-150.0,0.00032096,2]
[328108082,1716867045191,-150.0,0.00032097,2]
[328108083,1716867045201,-150.0,0.00032099,2]
[328108084,1716867045211,-1009.0,0.000321,2]
[328108085,1716867045220,-1500.0,0.00032105,2]
[328108087,1716867045230,-1500.0,0.00032105,2]
[328108089,1716867045240,-151.0,0.00032105,7]
[328108091,1716867045250,-151.0,0.00032105,7]
[328108092,1716867045261,-151.0,0.00032105,7]
[328108093,1716867045272,-151.0,0.00032105,7]
[328108095,1716867045282,-151.0,0.00032105,7]
[328108097,1716867045295,-151.0,0.00032105,7]
[328108099,1716867045305,-279.85202,0.00032105,7]
[328108101,1716867045315,-151.0,0.00032105,7]
[328108103,1716867045325,-279.85202,0.00032105,7]
[328108105,1716867045335,-151.0,0.00032105,7]
[328108107,1716867045345,-151.0,0.00032105,7]
[328108108,1716867045355,-158.218816,0.00032105,7]
[328108110,1716867045365,-150.0,0.00032139,2]
[328108112,1716867045376,-1500.0,0.00032152,2]
[328108114,1716867045386,-150.0,0.00032164,2]
[328108116,1716867045397,-150.0,0.00032166,2]
[328108118,1716867045407,-384.61911831,0.00032173,2]
[328108120,1716867045417,-150.0,0.00032191,2]
[328108122,1716867045427,-150.0,0.00032209,2]
[328108124,1716867045437,-300.0,0.0003221,2]
[328108126,1716867045447,-3098.85,0.00032222,2]
[328108128,1716867045456,-150.0,0.00032224,2]
[328108130,1716867045466,-150.0,0.00032227,2]
[328108132,1716867045476,-1100.0,0.00032232,10]
[328108134,1716867045486,-1500.0,0.00032232,10]
[328108136,1716867045496,-500.0,0.00032232,10]
[328108138,1716867045505,-150.0,0.00032237,2]
[328108140,1716867045515,-167.052811,0.00032248,42]
[328108142,1716867045523,-150.0,0.00032272,2]
[328108144,1716867045533,-314.71743852,0.00032281,2]
[328108145,1716867045544,-150.0,0.00032282,2]
[328108147,1716867045554,-150.0,0.00032293,2]
[328108149,1716867045564,-155.9114174,0.00032306,7]
[328108151,1716867045574,-150.0,0.00032317,2]
[328108153,1716867045584,-150.0,0.00032322,2]
[328108155,1716867045595,-150.0,0.00032328,2]
[328108157,1716867045605,-150.0,0.00032329,2]
[328108159,1716867045615,-150.0,0.0003234,2]
[328108161,1716867045624,-150.0,0.0003234,2]
[328108163,1716867045634,-151.0,0.0003234,7]
[328108165,1716867045643,-151.0,0.0003234,7]
[328108167,1716867045653,-151.0,0.0003234,7]
[328108169,1716867045662,-207.0,0.0003236,2]
[328108171,1716867045672,-208.0,0.0003236,2]
[328108173,1716867045682,-500.0,0.00032372,2]
[328108175,1716867045692,-150.0,0.00032375,2]
[328108177,1716867045702,-500.0,0.00032378,6]
[328108179,1716867045712,-150.0,0.00032378,2]
[328108180,1716867045723,-966.36,0.00032378,6]
[328108181,1716867045732,-150.0,0.00032379,2]
[328108182,1716867045742,-151.0,0.00032379,7]
[328108183,1716867045752,-151.0,0.00032379,7]
[328108184,1716867045761,-151.0,0.00032379,7]
[328108185,1716867045770,-162.120304,0.00032379,7]
[328108186,1716867045780,-151.0,0.00032379,7]
[328108187,1716867045790,-151.0,0.00032379,7]
[328108188,1716867045800,-14338.33734927,0.00032379,4]
[328108189,1716867045809,-150.0,0.00032385,2]
[328108190,1716867045818,-150.0,0.00032388,2]
[328108191,1716867045828,-158.0370497,0.00032388,7]
[328108192,1716867045838,-150.0,0.00032389,2]
[328108193,1716867045848,-155.9114174,0.000324,7]
[328108194,1716867045858,-150.0,0.00032401,2]
[328108195,1716867045868,-150.0,0.00032402,2]
[328108196,1716867045877,-151.0,0.00032409,7]
[328108197,1716867045887,-151.0,0.00032409,7]
[328108198,1716867045898,-150.0,0.00032414,2]
[328108199,1716867045908,-152.10323351,0.00032414,7]
[328108200,1716867045919,-150.0,0.00032418,2]
[328108201,1716867045928,-150.0,0.00032428,2]
[328108202,1716867045939,-150.0,0.0003243,5]
[328108203,1716867045948,-150.0,0.00032433,2]
[328108204,1716867045959,-150.0,0.00032438,2]
[328108205,1716867045971,-150.0,0.00032443,2]
[328108206,1716867045984,-150.0,0.00032443,2]
[328108207,1716867045995,-157.052811,0.00032448,40]
[328108208,1716867046004,-431.84918139,0.00032451,4]
[328108209,1716867046015,-431.84918136,0.00032451,4]
[328108210,1716867046024,-431.84918136,0.00032451,4]
[328108211,1716867046035,-431.84918136,0.00032451,4]
[328108212,1716867046046,-431.84918136,0.00032451,4]
[328108213,1716867046057,-431.84918136,0.00032451,4]
[328108214,1716867046067,-431.84918136,0.00032451,4]
[328108215,1716867046078,-431.84918136,0.00032451,4]
[328108216,1716867046091,-431.84918136,0.00032451,4]
[328108217,1716867046102,-431.84918136,0.00032451,4]
[328108218,1716867046113,-870.56512296,0.00032454,2]
[328108219,1716867046124,-150.0,0.00032455,2]
[328108220,1716867046136,-150.0,0.00032457,2]
[328108222,1716867046146,-150.0,0.00032475,2]
[328108224,1716867046156,-150.0,0.00032479,2]
[328108226,1716867046169,-150.0,0.00032483,2]
[328108228,1716867046180,-150.0,0.0003249,2]
[328108230,1716867046191,-408.858102,0.000325,2]
[328108232,1716867046202,-150.0,0.000325,2]
[328108234,1716867046212,-150.0,0.00032504,2]
[328108236,1716867046224,-150.0,0.00032508,2]
[328108238,1716867046235,-150.0,0.00032512,2]
[328108240,1716867046245,-150.0,0.00032522,2]
[328108243,1716867046257,-150.0,0.00032528,2]
[328108245,1716867046269,-150.0,0.0003254,2]
[328108247,1716867046281,-150.0,0.0003254,2]
[328108249,1716867046293,-150.0,0.0003254,2]
[328108251,1716867046304,-150.0,0.00032561,2]
[328108253,1716867046315,-1500.0,0.00032562,2]
[328108255,1716867046326,-150.0,0.00032563,2]
[328108257,1716867046337,-1500.0,0.00032594,2]
[328108259,1716867046348,-1373.13310257,0.000326,2]
[328108260,1716867046360,-226.64015238,0.000326,6]
[328108261,1716867046370,-150.0,0.000326,7]
[328108262,1716867046380,-174.45314002,0.000326,2]
[328108263,1716867046391,-4693.2769065,0.000326,2]
[328108264,1716867046401,-1070.83326672,0.000326,2]
[328108265,1716867046411,-150.0,0.00032602,2]
[328108266,1716867046422,-1366.51530341,0.00032612,10]
[328108267,1716867046432,-7162.74068962,0.00032612,10]
[328108268,1716867046442,-150.0,0.00032615,2]
[328108269,1716867046451,-150.0,0.00032615,2]
[328108270,1716867046462,-150.0,0.00032619,2]
[328108271,1716867046471,-150.0,0.00032622,2]
[328108272,1716867046482,-150.0,0.00032625,2]
[328108273,1716867046492,-150.0,0.00032627,2]
[328108274,1716867046502,-150.0,0.0003263,2]
[328108275,1716867046512,-1448.20161708,0.00032633,2]
[328108276,1716867046522,-150.0,0.00032636,2]
[328108277,1716867046532,-150.0,0.00032643,2]
[328108278,1716867046543,-150.0,0.00032645,2]
[328108279,1716867046553,-158.0370497,0.00032645,7]
[328108280,1716867046563,-150.0,0.00032647,2]
[328108281,1716867046573,-167.052811,0.00032648,40]
[328108282,1716867046583,-150.0,0.00032662,2]
[328108283,1716867046594,-500.0,0.00032685,6]
[328108284,1716867046604,-150.0,0.00032685,6]
[328108285,1716867046613,-500.0,0.00032685,6]
[328108286,1716867046623,-812.17,0.00032685,6]
[328108287,1716867046632,-500.0,0.00032685,6]
[328108288,1716867046641,-158.474644,0.00032686,7]
[328108289,1716867046651,-151.0,0.00032686,7]
[328108290,1716867046661,-155.080066,0.00032686,7]
[328108291,1716867046671,-151.0,0.00032686,7]
[328108292,1716867046682,-155.862985,0.00032686,7]
[328108293,1716867046692,-157.094868,0.00032686,7]
[328108294,1716867046702,-229.451342,0.00032686,7]
[328108295,1716867046711,-151.0,0.00032686,7]
[328108296,1716867046721,-151.0,0.00032686,7]
[328108297,1716867046730,-151.0,0.00032686,7]
[328108298,1716867046740,-164.192032,0.00032686,7]
[328108299,1716867046749,-151.0,0.00032686,7]
[328108300,1716867046760,-150.0,0.00032686,2]
[328108301,1716867046770,-99411.0173259,0.00032686,2]
[328108302,1716867046779,-5534.2683554,0.00032686,2]
[328108303,1716867046789,-500.0,0.00032686,3]
[328108304,1716867046799,-150.0,0.00032689,2]
[328108305,1716867046809,-150.0,0.00032689,2]
[328108306,1716867046819,-14338.33734927,0.00032689,4]
[328108307,1716867046828,-150.0,0.00032692,2]
[328108308,1716867046838,-500.0,0.00032695,3]
[328108309,1716867046848,-500.0,0.00032699,6]
[328108310,1716867046857,-150.0,0.00032699,6]
[328108311,1716867046867,-500.0,0.00032699,6]
[328108312,1716867046877,-966.36,0.00032699,6]
[328108313,1716867046887,-500.0,0.00032699,6]
[328108314,1716867046896,-500.0,0.00032699,6]
[328108315,1716867046906,-500.0,0.00032699,6]
[328108316,1716867046916,-812.17,0.00032699,6]
[328108317,1716867046926,-500.0,0.00032699,6]
[328108318,1716867046936,-250000.0,0.000327,7]
[328108319,1716867046945,-166.83024087,0.000327,5]
[328108320,1716867046956,-500.0,0.000327,3]
[328108321,1716867046965,-344.0,0.000327,5]
[328108322,1716867046975,-689.0,0.000327,5]
[328108323,1716867046984,-160.0,0.000327,5]
[328108324,1716867046994,-689.0,0.000327,5]
[328108325,1716867047003,-1778.77,0.000327,2]
[328108326,1716867047013,-2124.31,0.000327,2]
[328108327,1716867047023,-151.0,0.000327,7]
[328108328,1716867047033,-150.0,0.000327,5]
[328108329,1716867047043,-317.56,0.000327,2]
[328108330,1716867047052,-500.0,0.00032704,3]
[328108331,1716867047062,-500.0,0.00032709,3]
[328108332,1716867047072,-500.0,0.00032713,3]
[328108333,1716867047083,-500.0,0.00032718,3]
[328108334,1716867047096,-500.0,0.00032722,3]
[328108335,1716867047106,-500.0,0.00032726,3]
[328108336,1716867047117,-500.0,0.0003273,3]
[328108337,1716867047126,-500.0,0.00032735,3]
[328108338,1716867047137,-500.0,0.00032739,3]
[328108339,1716867047146,-384.61911831,0.00032741,2]
[328108340,1716867047156,-500.0,0.00032744,3]
[328108341,1716867047168,-500.0,0.00032748,3]
[328108342,1716867047178,-500.0,0.00032757,3]
[328108343,1716867047188,-500.0,0.00032766,3]
[328108344,1716867047198,-500.0,0.00032774,3]
[328108345,1716867047207,-500.0,0.00032776,3]
[328108346,1716867047217,-1100.0,0.0003278,10]
[328108347,1716867047226,-1500.0,0.0003278,10]
[328108348,1716867047236,-500.0,0.0003278,6]
[328108349,1716867047245,-966.36,0.0003278,6]
[328108350,1716867047255,-35561.320884,0.00032781,7]
[328108351,1716867047265,-196.07398975,0.00032781,7]
[328108352,1716867047274,-9119.99283278,0.00032781,7]
[328108353,1716867047284,-500.0,0.00032783,3]
[328108354,1716867047294,-1009.82,0.000328,2]
[328108355,1716867047305,-317.56,0.000328,2]
[328108356,1716867047314,-151.0,0.00032832,7]
[328108357,1716867047324,-151.0,0.00032832,7]
[328108358,1716867047333,-151.0,0.00032832,7]
[328108359,1716867047343,-151.0,0.00032832,7]
[328108360,1716867047353,-151.0,0.00032832,7]
[328108361,1716867047363,-160.0,0.00032845,2]
[328108362,1716867047373,-157.052806,0.00032848,40]
[328108363,1716867047383,-152.12059,0.0003285,7]
[328108364,1716867047393,-266.796676,0.0003285,7]
[328108365,1716867047403,-281.088445,0.0003285,7]
[328108366,1716867047412,-281.088445,0.0003285,7]
[328108367,1716867047423,-151.0,0.0003285,7]
[328108368,1716867047432,-160.0,0.00032854,2]
[328108369,1716867047442,-16000.0,0.00032855,3]
[328108370,1716867047452,-153.205034,0.00032855,7]
[328108371,1716867047462,-165.180032,0.00032855,7]
[328108372,1716867047472,-170.254969,0.00032855,7]
[328108373,1716867047482,-155.239868,0.00032855,7]
[328108374,1716867047492,-151.0,0.00032855,7]
[328108375,1716867047501,-477.220039,0.00032855,7]
[328108376,1716867047511,-477.220039,0.00032855,7]
[328108377,1716867047521,-161.674435,0.00032855,7]
[328108378,1716867047530,-289.236827,0.00032855,7]
[328108379,1716867047540,-151.0,0.00032855,7]
[328108380,1716867047549,-151.0,0.00032855,7]
[328108381,1716867047559,-152.875262,0.00032855,7]
[328108382,1716867047569,-155.19982,0.00032855,7]
[328108383,1716867047578,-154.864419,0.00032855,7]
[328108384,1716867047588,-153.854571,0.00032855,7]
[328108385,1716867047598,-151.0,0.00032855,7]
[328108386,1716867047608,-151.0,0.00032855,7]
[328108387,1716867047618,-155.244159,0.00032855,7]
[328108388,1716867047628,-151.0,0.00032855,7]
[328108389,1716867047638,-151.0,0.00032855,7]
[328108390,1716867047648,-151.0,0.00032855,7]
[328108391,1716867047658,-155.584955,0.00032855,7]
[328108392,1716867047667,-156.772387,0.00032855,7]
[328108393,1716867047677,-151.0,0.00032855,7]
[328108394,1716867047688,-151.0,0.00032855,7]
[328108395,1716867047698,-151.0,0.00032855,7]
[328108396,1716867047708,-151.0,0.00032855,7]
[328108397,1716867047718,-151.0,0.00032855,7]
[328108398,1716867047728,-10500.4438377,0.0003286,30]
[328108399,1716867047854,-7499.56496156,0.0003286,30]
[328108400,1716867047864,-151.0,0.0003286,7]
[328108401,1716867047875,-151.0,0.0003286,7]
[328108402,1716867047885,-248.773833,0.0003286,7]
[328108403,1716867047895,-151.0,0.0003286,7]
[328108404,1716867047905,-166.215434,0.0003286,7]
[328108405,1716867047915,-151.0,0.0003286,7]
[328108406,1716867047925,-279.85202,0.0003286,7]
[328108407,1716867047935,-151.0,0.0003286,7]
[328108408,1716867047944,-261.848592,0.0003286,7]
[328108409,1716867047954,-279.85202,0.0003286,7]
[328108410,1716867047964,-153.254637,0.0003286,7]
[328108411,1716867047974,-160.0,0.00032863,2]
[328108412,1716867047983,-6083.43850244,0.00032864,3]
[328108413,1716867047996,-1164.2408288,0.00032864,3]
[328108414,1716867048008,-1755.6958,0.00032864,3]
[328108415,1716867048020,-600.0,0.00032864,3]
[328108416,1716867048032,-3210.79791008,0.00032864,3]
[328108417,1716867048120,-1467.0,0.00029021,2]
[328108418,1716867048131,-500.0,0.00029815,2]
[328108419,1716867048141,-500.0,0.00029815,2]
[328108420,1716867048151,-500.0,0.00029815,2]
[328108421,1716867048316,-500.0,0.00029815,2]
[328108422,1716867048330,-500.0,0.00029815,2]
[328108423,1716867048339,-500.0,0.00029815,2]
[328108424,1716867048349,-500.0,0.00029815,2]
[328108425,1716867048359,-1467.0,0.00032021,2]
[328108426,1716867048369,-151.0,0.00032379,7]
[328108427,1716867048379,-3185.82695868,0.00032864,3]
[328108428,1716867048389,-10766.6730413,0.00032864,3]
[328108429,1716867048401,-312.16935958,0.00032864,3]
[328108430,1716867048412,-500.0,0.00032864,3]
[328108431,1716867048424,-1224.17883876,0.00032864,3]
[328108432,1716867048434,-151.0,0.00032864,7]
[328108433,1716867048444,-151.0,0.00032864,7]
[328108434,1716867048453,-50.75909744,0.00032864,7]
[328108435,1716867048485,-322.02203763,0.00028178,2]
[328108436,1716867048496,-1645.0,0.00029021,2]
[328108437,1716867048506,-500.0,0.00029815,2]
[328108438,1716867048516,-500.0,0.00029815,2]
[328108439,1716867048526,-100.79736056,0.00032864,7]
[328108440,1716867048536,-154.832916,0.00032864,7]
[328108441,1716867048547,-154.489211,0.00032864,7]
[328108442,1716867048557,-151.0,0.00032864,7]
[328108443,1716867048567,-330.15967482,0.00032869,6]
[328108444,1716867048580,-169.84032518,0.00032869,6]